[Event "WSTCC-65 2024"]
[Site "Krakow"]
[Date "2024.07.03"]
[Round "2.8"]
[White "Schulz, Michael"]
[Black "Lederman, Leon"]
[Result "0-1"]
[ECO "A45"]
[WhiteElo "2109"]
[BlackElo "2198"]
[Annotator "RC"]
[PlyCount "102"]
[EventDate "2024.07.01"]
[EventType "team-tourn"]
[EventCountry "POL"]
[SourceTitle "playchess.com"]
[Source "ChessBase"]
[SourceQuality "1"]
[TimeControl "40/5400+30:1800+30"]

1. d4 {[%emt 0:00:04]} Nf6 {[%emt 0:00:07]} 2. Bg5 {[%emt 0:00:14]} Ne4 {[%emt 0:00:07]} 3. Bf4 {[%emt 0:00:06]} d5 {[%emt 0:00:32]} 4. f3 {[%emt 0:00:37]} Nf6 {[%emt 0:01:03]} 5. e4 {[%emt 0:00:21]} dxe4 {[%emt 0:00:47]} 6. Nc3 {[%emt 0:00:07]} exf3 {[%emt 0:00:34]} 7. Nxf3 {[%emt 0:00:05]} a6 {[%emt 0:01:03]} 8. Bc4 {[%emt 0:05:17]} e6 {[%emt 0:00:14]} 9. Qe2 {[%emt 0:01:22]} Be7 {[%emt 0:04:55]} 10. O-O-O {[%emt 0:00:34]} c6 {[%emt 0:02:10]} 11. Ne5 {[%emt 0:06:27]} O-O {[%emt 0:00:44]} 12. g4 {[%emt 0:04:34]} Nd5 {[%emt 0:00:18]} 13. Nxd5 {[%emt 0:01:24]} exd5 {[%emt 0:00:47]} 14. Bd3 {[%emt 0:15:23]} Nd7 {[%emt 0:03:49]} 15. h4 {[%emt 0:12:48]} Nxe5 {[%emt 0:01:36]} 16. dxe5 {[%emt 0:02:46]} Be6 {[%emt 0:01:03]} 17. Bf5 {[%emt 0:04:11]} Qa5 {[%emt 0:06:01]} 18. Kb1 {[%emt 0:02:45]} Qb5 {[%emt 0:10:20]} 19. Qd2 {[%emt 0:05:52]} Rad8 {[%emt 0:01:24]} 20. Bg5 {[%emt 0:02:50]} Rd7 {[%emt 0:05:56]} 21. h5 {[%emt 0:03:46]} Ba3 {[%emt 0:10:35]} 22. Qc1 {[%emt 0:06:38]} Re8 {[%emt 0:03:05]} 23. Rh3 {[%emt 0:00:25]} Bf8 {[%emt 0:00:58]} 24. h6 {[%emt 0:04:43]} g6 {[%emt 0:03:49]} 25. Bf6 {[%emt 0:01:45]} d4 {[%emt 0:01:48]} 26. Bxe6 {[%emt 0:01:25]} Rxe6 {[%emt 0:00:23]} 27. c4 {[%emt 0:01:13]} Qc5 {[%emt 0:05:21]} 28. Rhd3 {[%emt 0:00:54]} b5 {[%emt 0:00:49]} 29. cxb5 {[%emt 0:00:38]} axb5 {[%emt 0:00:19]} 30. Qf4 {[%emt 0:01:08]} Rd5 {[%emt 0:07:49]} 31. Rxd4 {[%emt 0:02:20]} Re8 {[%emt 0:00:12]} 32. Rxd5 {[%emt 0:00:38]} cxd5 {[%emt 0:00:06]} 33. g5 {[%emt 0:03:05]} Rc8 {[%emt 0:01:55]} 34. Rc1 {[%emt 0:00:42]} Qxc1+ {[%emt 0:00:08]} 35. Qxc1 {[%emt 0:00:03]} Rxc1+ {[%emt 0:00:09]} 36. Kxc1 {[%emt 0:00:02]} Bc5 {[%emt 0:00:10]} 37. Kc2 {[%emt 0:00:41]} Kf8 {[%emt 0:00:07]} 38. Kd3 {[%emt 0:02:08]} Ke8 {[%emt 0:00:15]} 39. b4 {[%emt 0:01:13]} Bb6 {[%emt 0:01:03]} 40. Kc3 {[%emt 0:01:06]} Kd7 {[%emt 0:00:12]} 41. Kb3 {[%emt 0:30:10]} Kc6 {[%emt 0:32:31]} 42. a4 {[%emt 0:00:13]} bxa4+ {[%emt 0:00:06]} 43. Kxa4 {[%emt 0:00:05]} d4 {[%emt 0:00:13]} 44. Kb3 {[%emt 0:02:10]} Kd5 {[%emt 0:00:11]} 45. Kc2 {[%emt 0:02:25]} Ke4 {[%emt 0:01:00]} 46. Kd2 {[%emt 0:01:07]} d3 {[%emt 0:06:15]} 47. Kd1 {[%emt 0:03:43]} Kd5 {[%emt 0:00:41]} 48. Kd2 {[%emt 0:00:36]} Kc4 {[%emt 0:00:02]} 49. Be7 {[%emt 0:00:47]} Bd4 {[%emt 0:02:43]} 50. Bf6 {[%emt 0:00:20]} Bc3+ {[%emt 0:00:20]} 51. Ke3 {[%emt 0:00:00]} Bxb4 {[%emt 0:00:00]} 0-1

[Event "WSTCC-65 2024"]
[Site "Krakow"]
[Date "2024.07.03"]
[Round "2.8"]
[White "O`Connor, Eddie"]
[Black "Vogel, Robert"]
[Result "1/2-1/2"]
[ECO "B06"]
[WhiteElo "1953"]
[BlackElo "2085"]
[Annotator "NA RC"]
[PlyCount "55"]
[EventDate "2024.07.01"]
[EventType "team-tourn"]
[EventCountry "POL"]
[SourceTitle "playchess.com"]
[Source "ChessBase"]
[SourceQuality "1"]
[TimeControl "40/5400+30:1800+30"]

1. e4 {[%emt 0:00:14]} g6 {[%emt 0:00:06]} 2. d4 {[%emt 0:00:50]} Bg7 {[%emt 0:00:07]} 3. Nf3 {[%emt 0:00:25]} d6 {[%emt 0:00:14]} 4. Be3 {[%emt 0:03:24]} Nf6 {[%emt 0:01:58]} 5. Nc3 {[%emt 0:01:23]} O-O {[%emt 0:00:41]} 6. Qd2 {[%emt 0:01:18]} e5 {[%emt 0:03:59]} 7. O-O-O {[%emt 0:05:58]} exd4 {[%emt 0:05:38]} 8. Nxd4 {[%emt 0:00:38]} Re8 {[%emt 0:00:20]} 9. f3 {[%emt 0:00:35]} Nc6 {[%emt 0:03:27]} 10. Bc4 {[%emt 0:07:32]} Nxd4 {[%emt 0:19:05]} 11. Bxd4 {[%emt 0:00:43]} Be6 {[%emt 0:00:12]} 12. Bxe6 {[%emt 0:06:20]} Rxe6 {[%emt 0:00:11]} 13. g4 {[%emt 0:03:35]} c6 {[%emt 0:05:53]} 14. h4 {[%emt 0:02:34]} h5 {[%emt 0:02:36]} 15. gxh5 {[%emt 0:02:26]} Nxh5 {[%emt 0:00:19]} 16. Bxg7 {[%emt 0:01:52]} Kxg7 {[%emt 0:00:51]} 17. f4 {[%emt 0:07:34]} Qf6 {[%emt 0:07:29]} 18. f5 {[%emt 0:05:32]} Re5 {[%emt 0:07:43]} 19. fxg6 {[%emt 0:05:03]} fxg6 {[%emt 0:00:36]} 20. Qxd6 {[%emt 0:02:55]} Qxd6 {[%emt 0:03:45]} 21. Rxd6 {[%emt 0:00:16]} Rae8 {[%emt 0:00:49]} 22. Rd7+ {[%emt 0:03:46]} R8e7 {[%emt 0:01:30]} 23. Rxe7+ {[%emt 0:01:19]} Rxe7 {[%emt 0:00:02]} 24. Kd2 {[%emt 0:02:49]} Nf6 {[%emt 0:04:55]} 25. Kd3 {[%emt 0:05:34]} Ng4 {[%emt 0:06:45]} 26. Rg1 {[%emt 0:02:31]} Ne5+ {[%emt 0:00:39]} 27. Ke2 {[%emt 0:02:37]} Kh6 {[%emt 0:03:09]} 28. b3 {[%emt 0:05:17]} 1/2-1/2

[Event "WSTCC-65 2024"]
[Site "Krakow"]
[Date "2024.07.03"]
[Round "2.8"]
[White "Murray, Jim G."]
[Black "Quinn, Peter"]
[Result "1/2-1/2"]
[ECO "A40"]
[WhiteElo "1884"]
[BlackElo "1744"]
[Annotator "NA RC"]
[PlyCount "79"]
[EventDate "2024.07.01"]
[EventType "team-tourn"]
[EventCountry "POL"]
[SourceTitle "playchess.com"]
[Source "ChessBase"]
[SourceQuality "1"]
[TimeControl "40/5400+30:1800+30"]

1. d4 {[%emt 0:00:05]} c6 {[%emt 0:00:35]} 2. c4 {[%emt 0:00:08]} d6 {[%emt 0:00:30]} 3. Nc3 {[%emt 0:00:53]} Nd7 {[%emt 0:01:33]} 4. Nf3 {[%emt 0:00:34]} Qa5 {[%emt 0:01:27]} 5. e4 {[%emt 0:03:03]} Ngf6 {[%emt 0:03:20]} 6. Bd3 {[%emt 0:00:56]} e5 {[%emt 0:04:55]} 7. O-O {[%emt 0:02:38]} exd4 {[%emt 0:05:20]} 8. Nxd4 {[%emt 0:00:41]} Ne5 {[%emt 0:01:24]} 9. Be2 {[%emt 0:02:07]} Be6 {[%emt 0:05:30]} 10. Nxe6 {[%emt 0:06:51]} fxe6 {[%emt 0:01:06]} 11. Rb1 {[%emt 0:04:47]} Be7 {[%emt 0:03:48]} 12. Bh5+ {[%emt 0:12:06]} g6 {[%emt 0:02:36]} 13. Be2 {[%emt 0:00:06]} O-O {[%emt 0:03:08]} 14. Bh6 {[%emt 0:03:25]} Rfe8 {[%emt 0:04:57]} 15. b4 {[%emt 0:06:35]} Qc7 {[%emt 0:01:43]} 16. Bf4 {[%emt 0:03:13]} Nf7 {[%emt 0:05:14]} 17. Qb3 {[%emt 0:05:35]} e5 {[%emt 0:02:59]} 18. Be3 {[%emt 0:02:03]} Kg7 {[%emt 0:01:06]} 19. f4 {[%emt 0:03:06]} exf4 {[%emt 0:10:39]} 20. Bxf4 {[%emt 0:05:37]} Ne5 {[%emt 0:01:01]} 21. Be3 {[%emt 0:06:45]} b6 {[%emt 0:11:58]} 22. Qb2 {[%emt 0:03:31]} Rad8 {[%emt 0:07:21]} 23. Rbd1 {[%emt 0:06:27]} Qc8 {[%emt 0:02:52]} 24. Rf4 {[%emt 0:03:58]} Qe6 {[%emt 0:01:54]} 25. Bd4 {[%emt 0:06:57]} Rf8 {[%emt 0:03:24]} 26. Rdf1 {[%emt 0:02:26]} Nfd7 {[%emt 0:02:56]} 27. Nd1 {[%emt 0:05:04]} Rxf4 {[%emt 0:02:38]} 28. Rxf4 {[%emt 0:00:02]} Rf8 {[%emt 0:00:52]} 29. Qd2 {[%emt 0:01:05]} Bf6 {[%emt 0:01:14]} 30. Qb2 {[%emt 0:02:49]} g5 {[%emt 0:03:21]} 31. Rf5 {[%emt 0:01:21]} h6 {[%emt 0:01:02]} 32. Ne3 {[%emt 0:00:17]} Ng6 {[%emt 0:02:04]} 33. Bxf6+ {[%emt 0:00:39]} Nxf6 {[%emt 0:00:41]} 34. Bd3 {[%emt 0:00:40]} Ne5 {[%emt 0:00:32]} 35. Qc3 {[%emt 0:00:47]} Nxd3 {[%emt 0:00:41]} 36. Qxd3 {[%emt 0:00:02]} Qxe4 {[%emt 0:00:35]} 37. Qxe4 {[%emt 0:01:02]} Nxe4 {[%emt 0:00:08]} 38. Rxf8 {[%emt 0:00:30]} Kxf8 {[%emt 0:00:12]} 39. Nf5 {[%emt 0:00:20]} h5 {[%emt 0:00:23]} 40. Nd4 {[%emt 0:00:12]} 1/2-1/2

[Event "WSTCC-65 2024"]
[Site "Krakow"]
[Date "2024.07.03"]
[Round "2.9"]
[White "Renman, Nils-Gustaf"]
[Black "Roos, Daniel"]
[Result "1/2-1/2"]
[ECO "D11"]
[WhiteElo "2314"]
[BlackElo "2307"]
[Annotator "TA"]
[PlyCount "90"]
[EventDate "2024.07.01"]
[EventType "team-tourn"]
[EventCountry "POL"]
[SourceTitle "playchess.com"]
[Source "ChessBase"]
[SourceQuality "1"]
[TimeControl "40/5400+30:1800+30"]

{[%evp 12,90,27,21,13,-9,61,16,32,29,23,13,26,8,19,8,18,22,24,14,12,16,8,6,10,8,8,8,41,43,51,48,91,89,159,113,96,72,106,46,92,97,89,103,95,67,84,82,91,90,94,101,108,102,91,97,119,96,119,85,92,73,135,125,108,0,52,0,102,0,55,42,74,69,94,0,0,0,0,0,26]} 1. Nf3 {[%emt 0:00:03]} d5 {[%emt 0:00:27]} 2. d4 {[%emt 0:01:17]} c6 {[%emt 0:01:41]} 3. c4 {[%emt 0:00:23]} Nf6 {[%emt 0:00:43]} 4. e3 {[%emt 0:00:57]} g6 {[%emt 0:04:38]} 5. Nc3 {[%emt 0:00:49]} Bg7 {[%emt 0:00:10]} 6. h3 {[%emt 0:05:37]} O-O {[%emt 0:02:28]} 7. Be2 {[%emt 0:00:23]} c5 {[%emt 0:07:56]} 8. dxc5 {[%emt 0:01:13][%cal Rc4d5]} Qa5 {[%emt 0:00:13]} (8... dxc4 $11 9. O-O Qxd1 10. Rxd1 Nbd7) 9. Bd2 {[%emt 0:09:55]} (9. cxd5 Nxd5 10. Qxd5 Bxc3+ 11. Bd2 (11. bxc3 Qxc3+ 12. Qd2 Qxa1 $11) 11... Rd8 12. Bxc3 Qxc3+ 13. bxc3 Rxd5 $11) 9... dxc4 {[%emt 0:00:56]} 10. Bxc4 {[%emt 0:02:45]} Qxc5 {[%emt 0:00:12]} 11. Qe2 {[%emt 0:02:57]} Nc6 {[%emt 0:07:23]} 12. Rc1 {[%emt 0:00:22]} Bd7 {[%emt 0:08:44]} 13. Na4 {[%emt 0:05:05]} Qh5 {[%emt 0:03:06] [#]} 14. Nc5 $1 {[%emt 0:15:25]} Ne5 {[%emt 0:11:14]} 15. Nxe5 {[%emt 0:01:34]} Qxe5 {[%emt 0:00:10]} 16. Nxd7 {[%emt 0:00:48]} Nxd7 {[%emt 0:00:08]} 17. Bc3 {[%emt 0:05:43]} Qg5 {[%emt 0:10:21]} 18. O-O {[%emt 0:00:26]} Bxc3 {[%emt 0:02:06]} 19. Rxc3 {[%emt 0:00:07]} Nb6 {[%emt 0:04:49]} 20. Bb3 {[%emt 0:00:28]} Nc8 {[%emt 0:05:46]} 21. e4 {[%emt 0:06:54][%cal Be3e4,Be4e5][%mdl 32] Black is weak on the light squares} Qf4 {[%emt 0:06:17]} 22. e5 {[%emt 0:02:26]} a6 {[%emt 0:05:48]} (22... e6 $142) 23. Rf3 {[%emt 0:06:11] White has more active pieces.} (23. Rd1 $142) 23... Qb4 $16 {[%emt 0:01:30]} 24. Rc1 {[%emt 0:07:19] [#] Hoping for Rc4.} Na7 {[%emt 0:00:41]} 25. Bd5 {[%emt 0:03:05]} ({White should try} 25. Rc4 $16 Qa5 26. e6) 25... Nc6 {[%emt 0:05:19]} 26. Bxc6 {[%emt 0:01:08]} bxc6 {[%emt 0:00:04]} 27. Rxc6 {[%emt 0:00:34]} Rfd8 {[%emt 0:00:22]} 28. Rcc3 {[%emt 0:09:51]} ({Reject} 28. Rxa6 Rxa6 29. Qxa6 Qxb2 $14) 28... Rd4 {[%emt 0:01:41]} 29. a3 {[%emt 0:01:14]} Qb7 {[%emt 0:02:18]} 30. b4 {[%emt 0:01:25]} Rad8 {[%emt 0:01:22]} 31. Rfd3 {[%emt 0:01:26]} Qd5 {[%emt 0:01:39]} 32. Rxd4 {[%emt 0:00:19]} Qxd4 {[%emt 0:00:04][%mdl 4096] Endgame. KQR-KQR} 33. Qe3 {[%emt 0:01:14]} Qd5 {[%emt 0:03:23]} 34. Kh2 {[%emt 0:00:33]} h5 {[%emt 0:01:01]} 35. Rc5 {[%emt 0:00:42]} Qe6 {[%emt 0:00:21]} 36. Qe4 {[%emt 0:03:20]} Rd2 {[%emt 0:00:45]} (36... Kg7 $142) 37. f4 {[%emt 0:00:46] Qa8+ is the strong threat.} Kg7 {[%emt 0:01:33]} 38. Rc2 {[%emt 0:03:07]} (38. Rc6 $16 Qb3 39. f5 (39. Rxa6 $2 {perishes.} h4 $19)) 38... Rd5 {[%emt 0:00:54]} ({Black should play} 38... Rd1 $11) 39. Rc5 {[%emt 0:00:59]} (39. Qc4 $14) 39... Rd2 {[%emt 0:00:05]} 40. Rc2 {[%emt 0:00:04]} (40. Rc6 $16 Qb3 41. f5 (41. Rxa6 $2 {too greedy.} h4 $19)) 40... Rd5 $14 {[%emt 0:00:11]} 41. Qc4 {[%emt 0:02:48]} h4 {[%emt 0:04:10][%cal Oe6f5]} 42. Re2 {[%emt 0:02:56][%cal Of4f5]} Qd7 {[%emt 0:06:21]} 43. Qc3 {[%emt 0:02:28]} ({Better is} 43. Qxa6 $16 Qc7 44. Rf2) 43... e6 $11 {[%emt 0:02:31] The position is equal.} 44. Qf3 Rd1 45. Qf2 Qd8 {Weighted Error Value: White=0.19 (very precise) /Black=0.16 (very precise) .  Mistake:       	White=6     	Black=5      Inaccurate:     	White=1     	Black=5      OK:         	White=14    	Black=16     Best:        	---       	Black=1} 1/2-1/2

[Event "WSTCC-65 2024"]
[Site "Krakow"]
[Date "2024.07.03"]
[Round "2.9"]
[White "Swierczewski, Marek"]
[Black "Pigott, John C"]
[Result "0-1"]
[ECO "B52"]
[WhiteElo "2059"]
[BlackElo "2290"]
[Annotator "TA"]
[PlyCount "66"]
[EventDate "2024.07.01"]
[EventType "team-tourn"]
[EventCountry "POL"]
[SourceTitle "playchess.com"]
[Source "ChessBase"]
[SourceQuality "1"]
[TimeControl "40/5400+30:1800+30"]

{[%evp 17,66,16,9,0,0,0,0,0,0,0,0,0,0,0,0,0,0,0,0,0,0,0,153,108,131,153,126,-10,-11,-179,-181,-190,-175,-181,-176,-340,-343,-348,-346,-335,-316,-346,-129,-404,-390,-556,-564,-891,-893,-6115,-4386]} 1. e4 c5 2. Nf3 {[%emt 0:01:01]} d6 {[%emt 0:00:39]} 3. Bb5+ {[%emt 0:00:07]} Bd7 {[%emt 0:00:10]} 4. Bxd7+ {[%emt 0:00:10]} Nxd7 {[%emt 0:00:17]} 5. O-O {[%emt 0:00:12]} Ngf6 {[%emt 0:00:10]} 6. Qe2 {[%emt 0:00:07]} e6 {[%emt 0:00:15]} 7. c3 {[%emt 0:00:19]} Be7 {[%emt 0:00:15]} 8. d4 {[%emt 0:00:21]} O-O {[%emt 0:00:51]} 9. e5 {[%emt 0:05:59]} Ne8 {[%emt 0:01:01]} 10. Bf4 {[%emt 0:02:19]} Rc8 {[%emt 0:14:38]} 11. dxc5 {[%emt 0:11:20]} Nxc5 {[%emt 0:07:11]} 12. Rd1 {[%emt 0:01:31] The position is equal.} Qb6 {[%emt 0:01:09]} 13. Na3 {[%emt 0:04:13] exd6 is the strong threat.} dxe5 {[%emt 0:10:42]} 14. Nxe5 {[%emt 0:00:20][%cal Bf3e5,Be5c4,Bc4d6][%mdl 32]} Nf6 {[%emt 0:00:39]} 15. Nec4 {[%emt 0:09:11]} Qa6 {[%emt 0:09:33]} 16. Bd6 $1 {[%emt 0:02:56]} Bxd6 {[%emt 0:00:28]} 17. Rxd6 {[%emt 0:00:08]} b6 {[%emt 0:00:07]} 18. Rd4 {[%emt 0:00:49]} Nd5 {[%emt 0:09:48]} 19. Qd2 {[%emt 0:03:09]} Na4 $2 {[%emt 0:10:43]} ({Black should try} 19... b5 $11 20. Ne5 Rfd8) 20. Nd6 $16 {[%emt 0:05:58]} Rc6 {[%emt 0:01:34]} 21. Nab5 {[%emt 0:05:33]} Nc5 {[%emt 0:02:43] And now ...Nb3 would win.} 22. c4 {[%emt 0:01:35]} (22. Qd1 $16) 22... Nb3 $36 {[%emt 0:04:42][%mdl 2048] White is under pressure.} 23. Qd1 {[%emt 0:04:25]} (23. cxd5 $11 {and White has nothing to worry.} Rxd6 (23... Nxa1 $2 24. dxc6 Qxa2 25. Nc3 $18) 24. Nc7 Nxd2 25. Nxa6 Rxd5 26. Rxd5 exd5 27. Nb4) 23... Nxd4 $19 {[%emt 0:05:48]} 24. cxd5 {[%emt 0:00:09]} Ne2+ $1 {[%emt 0:00:20]} (24... Nxb5 25. dxc6 Nc7 (25... Rd8 $2 26. Nxb5 Rxd1+ 27. Rxd1 $18) 26. Nxf7 $16) (24... Rxd6 25. Nxd6 e5 26. a4 $15) 25. Kh1 {[%emt 0:02:11]} (25. Qxe2 $2 {is the wrong capture.} Rxd6 (25... exd5 $2 26. Qe7 $18) 26. dxe6 Rxe6 $19) 25... exd5 {[%emt 0:00:08][%cal Od5d4]} (25... Rxd6 26. Nxd6 Nf4 27. dxe6 Nxe6 28. Qf3) 26. Qxd5 {[%emt 0:01:59]} (26. Qxe2 $2 {loses.} Rxd6 27. Kg1 d4 $19) (26. h3 {keeps fighting.}) 26... Rc5 {[%emt 0:01:41]} 27. Qb3 {[%emt 0:05:03]} Rc1+ {[%emt 0:04:28]} 28. Rxc1 {[%emt 0:00:13]} Nxc1 {[%emt 0:00:03]} 29. Qc4 {[%emt 0:00:22] [#]} Nxa2 {[%emt 0:00:12]} (29... Qxa2 $1 $19 {has better winning chances.} 30. Qxc1 Qd5) 30. h4 $2 {[%emt 0:01:34][%mdl 8192] [#] Now White is beyond hope.} (30. g3 $17) 30... Qa5 $1 {[%emt 0:00:38]} 31. b4 {[%emt 0:01:52]} (31. Ne4 {might work better.}) 31... Nxb4 {[%emt 0:01:09] Black is clearly winning.} 32. Nxf7 {[%emt 0:01:45]} Rxf7 {[%emt 0:00:15]} 33. Nd6 {[%emt 0:00:20]} Qa1+ {[%emt 0:00:17] Weighted Error Value: White=0.88/Black=0.19 (very precise) .  Loses game:     	White=2     	---        Missed win:     	---       	Black=1      Mistake:       	White=3     	Black=1      Inaccurate:     	White=2     	---        OK:         	White=7     	Black=13     Best:        	White=3     	Black=2      Strong:       	White=1     	Black=2} 0-1

[Event "WSTCC-65 2024"]
[Site "Krakow"]
[Date "2024.07.03"]
[Round "2.9"]
[White "Falk, Thomas"]
[Black "Sanetra, Piotr"]
[Result "1/2-1/2"]
[ECO "E09"]
[WhiteElo "2022"]
[BlackElo "2024"]
[Annotator "NA RC"]
[PlyCount "33"]
[EventDate "2024.07.01"]
[EventType "team-tourn"]
[EventCountry "POL"]
[SourceTitle "playchess.com"]
[Source "ChessBase"]
[SourceQuality "1"]
[TimeControl "40/5400+30:1800+30"]

1. Nf3 {[%emt 0:00:02]} Nf6 {[%emt 0:00:17]} 2. c4 {[%emt 0:00:05]} e6 {[%emt 0:00:13]} 3. g3 {[%emt 0:00:29]} d5 {[%emt 0:00:09]} 4. d4 {[%emt 0:00:08]} Be7 {[%emt 0:01:35]} 5. Bg2 {[%emt 0:00:21]} Nbd7 {[%emt 0:00:32]} 6. O-O {[%emt 0:01:04]} O-O {[%emt 0:00:26]} 7. Qc2 {[%emt 0:00:56]} c6 {[%emt 0:00:36]} 8. Nbd2 {[%emt 0:00:19]} b6 {[%emt 0:00:47]} 9. b3 {[%emt 0:00:18]} Bb7 {[%emt 0:00:10]} 10. Bb2 {[%emt 0:00:09]} Rc8 {[%emt 0:00:20]} 11. e4 {[%emt 0:00:13]} c5 {[%emt 0:02:03]} 12. exd5 {[%emt 0:04:47]} exd5 {[%emt 0:00:42]} 13. dxc5 {[%emt 0:01:08]} dxc4 {[%emt 0:00:26]} 14. Nxc4 {[%emt 0:04:41]} Rxc5 {[%emt 0:26:00]} 15. a4 {[%emt 0:09:03]} Re8 {[%emt 0:07:36]} 16. Rfe1 {[%emt 0:02:15]} Bf8 {[%emt 0:17:18]} 17. Rad1 {[%emt 0:17:00]} 1/2-1/2

[Event "WSTCC-65 2024"]
[Site "Krakow"]
[Date "2024.07.03"]
[Round "2.10"]
[White "Legky, Nikolay A"]
[Black "Soderberg, Per"]
[Result "1-0"]
[ECO "D00"]
[WhiteElo "2339"]
[BlackElo "2015"]
[Annotator "TA"]
[PlyCount "39"]
[EventDate "2024.07.01"]
[EventType "team-tourn"]
[EventCountry "POL"]
[SourceTitle "playchess.com"]
[Source "ChessBase"]
[SourceQuality "1"]
[TimeControl "40/5400+30:1800+30"]

{[%evp 14,39,53,28,18,26,47,42,63,49,60,60,52,50,38,31,34,28,49,33,34,29,60,54,77,64,123,79]} 1. d4 {[%emt 0:00:06]} d5 {[%emt 0:00:06]} 2. Bf4 {[%emt 0:00:06]} Nf6 {[%emt 0:00:07]} 3. e3 {[%emt 0:00:04][%cal Be2e3,Be3d4,Bd4e5][%mdl 32]} c5 {[%emt 0:00:10]} 4. c3 {[%emt 0:00:27]} e6 {[%emt 0:00:21]} 5. Nf3 {[%emt 0:01:25]} Nc6 {[%emt 0:00:08]} 6. Nbd2 {[%emt 0:02:39]} cxd4 {[%emt 0:09:29]} 7. exd4 {[%emt 0:00:53]} Bd6 {[%emt 0:03:43]} 8. Bg3 {[%emt 0:01:46]} O-O {[%emt 0:00:26]} 9. Bd3 {[%emt 0:00:05]} Re8 {[%emt 0:02:16]} 10. Ne5 {[%emt 0:08:50]} Bxe5 {[%emt 0:02:04] White is slightly better.} 11. dxe5 {[%emt 0:00:04]} Nd7 {[%emt 0:00:12]} 12. f4 {[%emt 0:14:30]} Qb6 {[%emt 0:10:29]} 13. b4 {[%emt 0:09:25]} Qe3+ {[%emt 0:06:52]} 14. Qe2 {[%emt 0:00:05]} Qxe2+ {[%emt 0:01:17]} 15. Kxe2 {[%emt 0:00:07]} b6 {[%emt 0:04:05]} 16. Bf2 {[%emt 0:13:29]} Bb7 {[%emt 0:03:50]} 17. Nf3 $36 {[%emt 0:02:23][%mdl 2048] White is pushing.} h6 {[%emt 0:00:56]} 18. Nd4 {[%emt 0:02:00]} a6 {[%emt 0:05:17]} 19. a4 {[%emt 0:00:35] White has more active pieces.} Nxd4+ {[%emt 0:01:12]} (19... a5 $14) 20. Bxd4 {Weighted Error Value: White=0.07 (flawless) /Black=0.17 (very precise) .  Mistake:       	---       	Black=1      Inaccurate:     	White=1     	Black=1      OK:         	White=2     	Black=4      Best:        	White=1     	---} 1-0

[Event "WSTCC-65 2024"]
[Site "Krakow"]
[Date "2024.07.03"]
[Round "2.10"]
[White "Baker, Chris W"]
[Black "Czajkowski, Ryszard"]
[Result "1-0"]
[ECO "A05"]
[WhiteElo "2198"]
[BlackElo "1975"]
[Annotator "RC"]
[PlyCount "85"]
[EventDate "2024.07.01"]
[EventType "team-tourn"]
[EventCountry "POL"]
[SourceTitle "playchess.com"]
[Source "ChessBase"]
[SourceQuality "1"]
[TimeControl "40/5400+30:1800+30"]

1. Nf3 {[%emt 0:00:05]} Nf6 {[%emt 0:00:20]} 2. c4 {[%emt 0:00:36]} c5 {[%emt 0:01:13]} 3. g3 {[%emt 0:00:46]} Nc6 {[%emt 0:00:42]} 4. Bg2 {[%emt 0:00:38]} e6 {[%emt 0:03:35]} 5. O-O {[%emt 0:01:08]} d5 {[%emt 0:00:48]} 6. cxd5 {[%emt 0:02:45]} Nxd5 {[%emt 0:04:42]} 7. d4 {[%emt 0:03:49]} Be7 {[%emt 0:03:25]} 8. dxc5 {[%emt 0:04:17]} Bxc5 {[%emt 0:02:43]} 9. a3 {[%emt 0:06:07]} Be7 {[%emt 0:18:18]} 10. Nbd2 {[%emt 0:06:58]} O-O {[%emt 0:01:47]} 11. Nc4 {[%emt 0:06:39]} b5 {[%emt 0:06:43]} 12. Ne3 {[%emt 0:03:26]} Nxe3 {[%emt 0:11:34]} 13. Bxe3 {[%emt 0:01:28]} Bb7 {[%emt 0:02:50]} 14. Nd4 {[%emt 0:26:49]} Nxd4 {[%emt 0:01:36]} 15. Bxb7 {[%emt 0:00:16]} Rb8 {[%emt 0:00:20]} 16. Bg2 {[%emt 0:00:28]} Bf6 {[%emt 0:01:23]} 17. Rc1 {[%emt 0:08:52]} a5 {[%emt 0:08:40]} 18. Rc5 {[%emt 0:12:02]} b4 {[%emt 0:07:36]} 19. a4 {[%emt 0:03:53]} b3 {[%emt 0:04:46]} 20. Bd2 {[%emt 0:02:25]} Nc2 {[%emt 0:04:01]} 21. Rxa5 {[%emt 0:01:41]} Bxb2 {[%emt 0:00:57]} 22. Rb5 {[%emt 0:00:48]} Na3 {[%emt 0:07:05]} 23. Rxb8 {[%emt 0:04:24]} Qxb8 {[%emt 0:00:04]} 24. a5 {[%emt 0:00:07]} Bd4 {[%emt 0:01:32]} 25. Bf4 {[%emt 0:00:32]} e5 {[%emt 0:01:10]} 26. Qxd4 {[%emt 0:00:09]} exd4 {[%emt 0:00:12]} 27. Bxb8 {[%emt 0:00:02]} Rxb8 {[%emt 0:00:12]} 28. a6 {[%emt 0:00:06]} Nb5 {[%emt 0:04:01]} 29. Rb1 {[%emt 0:00:13]} Na7 {[%emt 0:00:38]} 30. Bb7 {[%emt 0:00:12]} Kf8 {[%emt 0:01:03]} 31. Rxb3 {[%emt 0:00:07]} Ke7 {[%emt 0:00:01]} 32. Rb4 {[%emt 0:01:00]} Rd8 {[%emt 0:00:08]} 33. Be4 {[%emt 0:00:14]} g6 {[%emt 0:01:33]} 34. g4 {[%emt 0:00:22]} f6 {[%emt 0:00:26]} 35. Kf1 {[%emt 0:00:14]} Rd6 {[%emt 0:00:39]} 36. Rb7+ {[%emt 0:00:09]} Rd7 {[%emt 0:00:03]} 37. Ke1 {[%emt 0:00:11]} Kd6 {[%emt 0:00:21]} 38. Kd2 {[%emt 0:00:09]} Rxb7 {[%emt 0:01:21]} 39. axb7 {[%emt 0:01:00]} Kc7 {[%emt 0:00:01]} 40. Kd3 {[%emt 0:00:22]} Nb5 {[%emt 0:00:10]} 41. Kc4 {[%emt 0:30:20]} f5 {[%emt 0:11:10]} 42. gxf5 {[%emt 0:00:00]} gxf5 {[%emt 0:01:25]} 43. Bf3 {[%emt 0:00:00]} 1-0